bitfinex-derivatives/quotes_BTCF0:USTF0_20260106
["timestamp","ask_amount","ask_price","bid_price","bid_amount"]
[1767679753150,0.010676,93692.0,93673.0,0.09760046]
[1767679753447,0.010676,93690.0,93673.0,0.09760046]
[1767679754444,0.09132912,93701.0,93673.0,0.09760046]
[1767679754645,0.010676,93691.0,93676.0,0.09760046]
[1767679754845,0.010676,93689.0,93676.0,0.09760046]
[1767679757658,0.010676,93685.0,93667.0,0.09760046]
[1767679757954,0.010676,93688.0,93669.0,0.010678]
[1767679758154,0.010676,93685.0,93669.0,0.09760046]
[1767679759447,0.09132912,93690.0,93670.0,0.010678]
[1767679759647,0.010676,93687.0,93670.0,0.09760046]
[1767679759858,0.09132912,93690.0,93670.0,0.09760046]
[1767679762164,0.010676,93686.0,93670.0,0.09760046]
[1767679765059,0.010676,93689.0,93671.0,0.010678]
[1767679765362,0.010676,93689.0,93671.0,0.10827846]
[1767679765762,0.010676,93687.0,93671.0,0.09760046]
[1767679766462,0.010676,93685.0,93671.0,0.09760046]
[1767679766765,0.09076,93693.0,93668.0,0.010678]
[1767679766766,0.10118733,93690.0,93668.0,0.010678]
[1767679766955,0.010676,93685.0,93668.0,0.10827846]
[1767679769364,0.010676,93683.0,93668.0,0.09760046]
[1767679770255,0.09132912,93690.0,93668.0,0.09760046]
[1767679770863,0.00985821,93689.0,93668.0,0.09760046]
[1767679771063,0.10118733,93689.0,93668.0,0.09760046]
[1767679771266,0.010677,93681.0,93668.0,0.09760046]
[1767679772467,0.10118733,93689.0,93668.0,0.10827846]
[1767679772670,0.010676,93683.0,93668.0,0.10827846]
[1767679773477,0.010676,93683.0,93668.0,0.09760046]
[1767679774564,0.010676,93683.0,93668.0,0.10827846]
[1767679775071,0.010676,93684.0,93668.0,0.10827846]
[1767679776769,0.010676,93687.0,93668.0,0.10827846]
[1767679776971,0.010676,93687.0,93668.0,0.09760046]
[1767679777870,0.00903692,93692.0,93670.0,0.09141457]
[1767679777871,0.010676,93685.0,93670.0,0.09141457]
[1767679778568,0.010677,93676.0,93663.0,0.14886266]
[1767679778769,0.10562521,93676.0,93663.0,0.14444624]
[1767679779076,0.010678,93671.0,93664.0,0.15963824]
[1767679779270,0.010678,93669.0,93663.0,0.08634358]
[1767679779877,0.010678,93673.0,93659.0,0.060758]
[1767679780261,0.010678,93673.0,93660.0,0.15960271]
[1767679784175,0.010677,93677.0,93660.0,0.25101728]
[1767679784874,0.010677,93675.0,93660.0,0.25101728]
[1767679786077,0.010678,93672.0,93660.0,0.25101728]
[1767679786576,0.010677,93675.0,93660.0,0.25101728]
[1767679788583,0.010677,93675.0,93660.0,0.34956361]
[1767679789678,0.010677,93678.0,93660.0,0.34956361]
[1767679789869,0.010677,93676.0,93660.0,0.34956361]
[1767679790269,0.010678,93674.0,93660.0,0.34956361]
[1767679790474,0.09658829,93681.0,93660.0,0.34956361]
[1767679791078,0.09854633,93680.0,93660.0,0.34956361]
[1767679792080,0.010677,93675.0,93660.0,0.34956361]
[1767679793585,0.10562521,93679.0,93660.0,0.15960271]
[1767679793781,0.09076,93682.0,93645.0,0.09141457]
[1767679793782,0.10562521,93668.0,93645.0,0.09141457]
[1767679793986,0.010679,93657.0,93645.0,0.09141457]
[1767679794277,0.010679,93662.0,93646.0,0.16029407]
[1767679794484,0.010679,93665.0,93646.0,0.16029407]
[1767679794685,0.010679,93663.0,93646.0,0.16029407]
[1767679794877,0.010679,93663.0,93646.0,0.25170864]
[1767679795268,0.010678,93666.0,93647.0,0.09494707]
[1767679795469,0.09658829,93668.0,93651.0,0.01068]
[1767679795676,0.010678,93669.0,93652.0,0.09494707]
[1767679799272,0.010678,93667.0,93652.0,0.09494707]
[1767679800482,0.010678,93667.0,93650.0,0.09854633]
[1767679800692,0.00016017,93670.0,93650.0,0.1934934]
[1767679801487,0.0987065,93670.0,93650.0,0.1934934]
[1767679802190,0.0987065,93670.0,93650.0,0.2041734]
[1767679802488,0.0987065,93670.0,93651.0,0.09931136]
[1767679802990,0.010678,93667.0,93651.0,0.09931136]
[1767679804282,0.00016017,93670.0,93652.0,0.09931136]
[1767679804481,0.010677,93677.0,93661.0,0.09931136]
[1767679804679,0.01057006,93691.0,93661.0,0.09931136]
[1767679804680,0.010677,93680.0,93661.0,0.09931136]
[1767679805088,0.010678,93673.0,93661.0,0.09931136]
[1767679806797,0.010677,93676.0,93661.0,0.09931136]
[1767679806986,0.010677,93679.0,93661.0,0.09931136]
[1767679807186,0.010677,93679.0,93662.0,0.010679]
[1767679807388,0.010677,93679.0,93663.0,0.09931136]
[1767679816502,0.09076,93682.0,93664.0,0.010679]
[1767679816699,0.010676,93688.0,93671.0,0.09931136]
[1767679816893,0.09076,93687.0,93671.0,0.09931136]
[1767679818610,0.010675,93695.0,93678.0,0.09931136]
[1767679818801,0.010675,93698.0,93680.0,0.19785769]
[1767679820093,0.010674,93701.0,93681.0,0.09931136]
[1767679820403,0.101434,93701.0,93681.0,0.09931136]
[1767679820993,0.101434,93701.0,93683.0,0.09931136]
[1767679821689,0.010674,93701.0,93683.0,0.09931136]
[1767679822094,0.010674,93705.0,93690.0,0.09854633]
[1767679822300,0.09076,93706.0,93691.0,0.09931136]
[1767679822604,0.101434,93706.0,93691.0,0.09931136]
[1767679823902,0.010674,93704.0,93689.0,0.00016017]
[1767679824997,0.09076,93706.0,93689.0,0.00016017]
[1767679825198,0.010674,93702.0,93689.0,0.00016017]
[1767679826503,0.010675,93700.0,93689.0,0.00016017]
[1767679826803,0.010676,93691.0,93675.0,0.18615459]
[1767679826998,0.10753791,93694.0,93676.0,0.09076]
[1767679827198,0.10753791,93694.0,93676.0,0.2498801]
[1767679827594,0.010675,93694.0,93676.0,0.2498801]
[1767679828007,0.010675,93694.0,93676.0,0.34919146]
[1767679830913,0.010676,93692.0,93676.0,0.34919146]
[1767679831211,0.010676,93692.0,93676.0,0.19007136]
[1767679832009,0.010675,93696.0,93676.0,0.20074836]
[1767679832312,0.010675,93696.0,93680.0,0.09854633]
[1767679835427,0.010675,93696.0,93677.0,0.0982237]
[1767679835627,0.010675,93696.0,93680.0,0.09854633]
[1767679836031,0.010675,93694.0,93680.0,0.09854633]
[1767679837034,0.11024125,93697.0,93680.0,0.09854633]
[1767679838524,0.010675,93695.0,93680.0,0.09854633]
[1767679838725,0.010675,93695.0,93678.0,0.010677]
[1767679839438,0.010675,93695.0,93677.0,0.0982237]
[1767679840238,0.09811258,93700.0,93677.0,0.0982237]
[1767679841135,0.010675,93697.0,93680.0,0.010677]
[1767679841339,0.10922133,93700.0,93682.0,0.010677]
[1767679841536,0.010675,93698.0,93680.0,0.19677003]
[1767679842839,0.010673,93715.0,93681.0,0.0982237]
[1767679843141,0.08174593,93758.0,93705.0,0.09854633]
[1767679843142,0.00960307,93738.0,93705.0,0.09854633]
[1767679843332,0.00960307,93737.0,93720.0,0.09854633]
[1767679843533,0.00960307,93737.0,93721.0,0.09076]
[1767679843741,0.00960307,93737.0,93722.0,0.09076]
[1767679843938,0.00960307,93737.0,93723.0,0.09076]
[1767679845530,0.4,93736.0,93723.0,0.09076]
[1767679849440,0.02027307,93741.0,93723.0,0.09076]
[1767679849441,0.11023625,93741.0,93723.0,0.09076]
[1767679849643,0.00960307,93740.0,93724.0,0.010672]
[1767679851942,0.00960307,93744.0,93727.0,0.010671]
[1767679852136,0.00960307,93744.0,93724.0,0.0982237]
[1767679852343,0.10916932,93748.0,93727.0,0.010671]
[1767679852738,0.010669,93750.0,93729.0,0.0982237]
[1767679852946,0.01173644,93749.0,93729.0,0.0982237]
[1767679853249,0.00960307,93742.0,93730.0,0.09072]
[1767679853540,0.00960307,93742.0,93731.0,0.09072]
[1767679854548,0.09956625,93743.0,93731.0,0.09072]
[1767679854748,0.00960307,93746.0,93731.0,0.09072]
[1767679854946,0.010669,93747.0,93732.0,0.09288089]
[1767679855145,0.01103227,93762.0,93741.0,0.09288089]
[1767679855345,0.01103227,93762.0,93742.0,0.10139]
[1767679855534,0.01103227,93762.0,93746.0,0.010669]
[1767679855740,0.01103227,93762.0,93745.0,0.010669]
[1767679855943,0.01103227,93765.0,93745.0,0.010669]
[1767679856239,0.01103227,93764.0,93745.0,0.010669]
[1767679856440,0.01103227,93764.0,93742.0,0.18360089]
[1767679856640,0.01103227,93764.0,93743.0,0.09288089]
[1767679857245,0.09729388,93766.0,93746.0,0.010669]
[1767679857442,0.01103227,93768.0,93749.0,0.010669]
[1767679857940,0.00015999,93765.0,93749.0,0.010669]
[1767679858643,0.10832615,93759.0,93735.0,0.09288089]
[1767679858845,0.01103227,93757.0,93738.0,0.01067]
[1767679859042,0.09729388,93758.0,93740.0,0.01067]
[1767679859441,0.01103227,93760.0,93740.0,0.01067]
[1767679859644,0.01103227,93760.0,93740.0,0.10355089]
[1767679861047,0.010668,93759.0,93740.0,0.10355089]
[1767679862044,0.010668,93762.0,93744.0,0.010669]
[1767679862246,0.10843933,93764.0,93746.0,0.010669]
[1767679862447,0.10843933,93764.0,93747.0,0.09072]
[1767679862642,0.01082699,93765.0,93748.0,0.09587012]
[1767679862643,0.00015999,93765.0,93748.0,0.09587012]
[1767679862849,0.00015999,93765.0,93750.0,0.010669]
[1767679863050,0.00015999,93765.0,93752.0,0.010669]
[1767679866252,0.00015999,93765.0,93755.0,0.010668]
[1767679866457,0.00213268,93779.0,93760.0,0.09587012]
[1767679866655,0.010665,93786.0,93766.0,0.09587012]
[1767679866849,0.010665,93784.0,93768.0,0.09587012]
[1767679868558,0.010665,93784.0,93769.0,0.09072]
[1767679871157,0.010665,93784.0,93770.0,0.09068]
[1767679872462,0.010665,93784.0,93771.0,0.09068]
[1767679873557,0.01114545,93786.0,93771.0,0.09068]
[1767679874149,0.010665,93785.0,93771.0,0.09068]
[1767679875855,0.09921506,93816.0,93792.0,0.000544]
[1767679876044,0.10134706,93809.0,93791.0,0.09068]
[1767679876248,0.10134706,93809.0,93797.0,0.010663]
[1767679876754,0.10134706,93809.0,93794.0,0.010664]
[1767679876954,0.4,93808.0,93794.0,0.010664]
[1767679877152,0.002132,93809.0,93797.0,0.00100741]
[1767679877460,0.002132,93809.0,93798.0,0.00100741]
[1767679877652,0.002132,93809.0,93797.0,0.09587012]
[1767679878861,0.002132,93809.0,93800.0,0.00171107]
[1767679879755,0.002132,93809.0,93799.0,0.09587012]
[1767679880858,0.002132,93809.0,93794.0,0.00147858]
[1767679881050,0.002132,93809.0,93795.0,0.010664]
[1767679881252,0.002132,93809.0,93796.0,0.00147858]
[1767679883151,0.002132,93809.0,93793.0,0.09587012]
[1767679883455,0.01114545,93808.0,93794.0,0.09068]
[1767679883650,0.010663,93806.0,93794.0,0.09068]
[1767679883850,0.012794,93809.0,93794.0,0.09068]
[1767679884055,0.002132,93809.0,93794.0,0.09068]
[1767679885560,0.010662,93808.0,93794.0,0.09068]
[1767679886752,0.010662,93808.0,93794.0,0.09169983]
[1767679887860,0.010661,93823.0,93794.0,0.09169983]
[1767679887861,0.01114545,93840.0,93800.0,0.00085521]
[1767679888048,0.01114545,93837.0,93815.0,2.1e-07]
[1767679888248,0.010661,93822.0,93810.0,0.09068]
[1767679888561,0.010661,93824.0,93809.0,0.09068]
[1767679888752,0.010661,93824.0,93817.0,0.00015991]
[1767679888953,0.010661,93821.0,93809.0,0.09064]
[1767679890154,0.010661,93819.0,93809.0,0.09064]
[1767679891654,0.01072411,93816.0,93799.0,0.09064]
[1767679892263,0.010662,93811.0,93799.0,0.09064]
[1767679892857,0.010662,93814.0,93799.0,0.101303]
[1767679893058,0.11041315,93817.0,93799.0,0.101303]
[1767679893259,0.01072411,93814.0,93796.0,0.18608515]
[1767679893748,0.09975215,93816.0,93796.0,0.1886998]
[1767679894065,0.010662,93812.0,93796.0,0.1993638]
[1767679894570,0.010662,93812.0,93797.0,0.00261465]
[1767679898665,0.010661,93816.0,93797.0,0.0980598]
[1767679898862,0.01072411,93820.0,93799.0,0.00203015]
[1767679899058,0.010662,93813.0,93799.0,0.00203015]
[1767679899660,0.010662,93811.0,93798.0,0.09544515]
[1767679899864,0.01072411,93817.0,93798.0,0.09544515]
[1767679900060,0.010662,93813.0,93798.0,0.09544515]
[1767679903271,0.010662,93811.0,93798.0,0.09544515]
[1767679903471,0.01072411,93816.0,93796.0,0.00191067]
[1767679903666,0.01072411,93816.0,93796.0,0.01257367]
[1767679904067,0.010662,93814.0,93797.0,0.01211006]
[1767679904261,0.010662,93812.0,93798.0,0.00144706]
[1767679904472,0.01072411,93816.0,93796.0,0.09544515]
[1767679904666,0.01072411,93815.0,93796.0,0.09544515]
[1767679905067,0.010662,93812.0,93796.0,0.10610915]
[1767679905268,0.010662,93810.0,93796.0,0.10610915]
[1767679906081,0.010662,93808.0,93795.0,0.15049041]
[1767679906378,0.010662,93811.0,93795.0,0.16230854]
[1767679906577,0.010662,93811.0,93796.0,0.00103767]
[1767679914977,0.010662,93814.0,93797.0,0.010663]
[1767679915783,0.010662,93812.0,93796.0,0.00103767]
[1767679918688,0.010662,93812.0,93796.0,0.01170167]
[1767679919685,0.01058719,93829.0,93799.0,0.09459189]
[1767679919903,0.01081991,93825.0,93810.0,0.09827218]
[1767679920087,0.00015991,93825.0,93811.0,0.010662]
[1767679921186,0.00015991,93825.0,93810.0,0.19286407]
[1767679922191,0.00015991,93825.0,93811.0,0.09519291]
[1767679923095,0.010659,93833.0,93816.0,0.10585391]
[1767679923296,0.010659,93833.0,93818.0,0.09519291]
[1767679923490,0.010659,93833.0,93820.0,0.09827218]
[1767679923886,0.010659,93836.0,93820.0,0.09827218]
[1767679924587,0.09277132,93839.0,93826.0,0.09827218]
[1767679924588,0.00213132,93839.0,93826.0,0.09827218]
[1767679924787,0.0101097,93847.0,93829.0,0.09827218]
[1767679925298,0.0101097,93846.0,93822.0,0.18092977]
[1767679925596,0.010658,93842.0,93830.0,0.09827218]
[1767679925791,0.09267449,93853.0,93831.0,0.09519291]
[1767679925993,0.010658,93848.0,93831.0,0.09519291]
[1767679926298,0.010659,93840.0,93829.0,0.00015991]
[1767679926498,0.0207677,93844.0,93829.0,0.00015991]
[1767679926695,0.010658,93842.0,93829.0,0.00015991]
[1767679926887,0.010659,93840.0,93829.0,0.00015991]
[1767679927403,0.010659,93840.0,93829.0,0.06007848]
[1767679927596,0.010659,93840.0,93829.0,0.00015991]
[1767679928500,0.0101097,93847.0,93829.0,0.00015991]
[1767679928501,0.010658,93843.0,93829.0,0.00015991]
[1767679930097,0.010658,93843.0,93830.0,0.09827218]
[1767679930302,0.0101097,93852.0,93829.0,0.00015991]
[1767679930601,0.0101097,93852.0,93830.0,0.19346509]
[1767679930898,0.0101097,93851.0,93830.0,0.19346509]
[1767679931688,0.09267449,93852.0,93831.0,0.09519291]
[1767679931890,0.010657,93850.0,93831.0,0.09519291]
[1767679932090,0.010658,93848.0,93831.0,0.09519291]
[1767679932292,0.010658,93846.0,93831.0,0.09519291]
[1767679933502,0.010658,93846.0,93836.0,0.09827218]
[1767679933694,0.010658,93846.0,93831.0,0.09519291]
[1767679934092,0.010658,93842.0,93829.0,0.00015991]
[1767679934306,0.010659,93840.0,93830.0,0.09827218]
[1767679934602,0.010659,93840.0,93829.0,0.00015991]
[1767679935691,0.010658,93843.0,93829.0,0.00015991]
[1767679936408,0.0101097,93840.0,93829.0,0.00015991]
[1767679936808,0.09267449,93842.0,93829.0,0.00015991]
[1767679937212,0.09267449,93842.0,93830.0,0.09827218]
[1767679937808,0.010658,93841.0,93830.0,0.09827218]
[1767679939511,0.010658,93841.0,93829.0,0.00015991]
[1767679939708,0.010658,93841.0,93830.0,0.09827218]
[1767679940209,0.010658,93841.0,93829.0,0.00015991]
[1767679940411,0.010658,93841.0,93830.0,0.09827218]
[1767679942510,0.10278419,93841.0,93829.0,0.00015991]
[1767679942708,0.10278419,93832.0,93814.0,0.09519291]
[1767679942910,0.0101097,93829.0,93809.0,0.002132]
[1767679943105,0.010661,93823.0,93809.0,0.14754622]
[1767679943406,0.0207707,93823.0,93810.0,0.09827218]
[1767679943607,0.0207707,93823.0,93809.0,0.002132]
[1767679943608,0.010661,93818.0,93809.0,0.002132]
[1767679943815,0.010661,93818.0,93808.0,0.09827218]
[1767679944210,0.010661,93821.0,93808.0,0.09827218]
[1767679944514,0.09267449,93825.0,93810.0,0.09827218]
[1767679945010,0.1007097,93830.0,93815.0,0.09827218]
[1767679945309,0.1007097,93830.0,93807.0,0.16064579]
[1767679945310,0.0906,93834.0,93824.0,0.00098176]
[1767679945507,0.0906,93837.0,93824.0,0.09925394]
[1767679945708,0.0906,93837.0,93820.0,0.01559332]
[1767679946113,0.010659,93836.0,93820.0,0.1138655]
[1767679946315,0.010659,93836.0,93821.0,0.00493232]
[1767679946905,0.0906,93837.0,93820.0,0.09827218]
[1767679948216,0.010659,93833.0,93820.0,0.09827218]
[1767679950413,0.010659,93835.0,93820.0,0.10893318]
[1767679950812,0.010659,93836.0,93820.0,0.09827218]
[1767679951119,0.010659,93834.0,93820.0,0.09827218]
[1767679954522,0.0906,93837.0,93820.0,0.09827218]
[1767679957122,0.010659,93833.0,93820.0,0.09827218]
[1767679957721,0.010659,93833.0,93818.0,0.09912211]
[1767679957918,0.01158283,93836.0,93815.0,0.07885789]
[1767679958114,0.01158283,93835.0,93815.0,0.00223832]
[1767679958317,0.01158283,93835.0,93815.0,0.01289932]
[1767679958613,0.09777937,93836.0,93817.0,0.00211878]
[1767679959118,0.01066,93830.0,93820.0,0.09827218]
[1767679961123,0.010659,93833.0,93820.0,0.09827218]
[1767679961421,0.0906,93837.0,93818.0,0.00211878]
[1767679961625,0.01066,93831.0,93820.0,0.09827218]
[1767679961818,0.01066,93831.0,93817.0,0.09624552]
[1767679962118,0.01066,93831.0,93820.0,0.09827218]
[1767679962322,0.01066,93829.0,93820.0,0.09827218]
[1767679962523,0.01066,93827.0,93820.0,0.09827218]
[1767679962723,0.01066,93830.0,93814.0,0.08839624]
[1767679962924,0.01066,93830.0,93816.0,0.01166087]
[1767679963817,0.01066,93830.0,93820.0,0.09827218]
[1767679964012,0.01158283,93830.0,93814.0,0.07661957]
[1767679964218,0.010661,93821.0,93814.0,0.07661957]
[1767679964416,0.01158283,93817.0,93798.0,0.22484873]
[1767679964619,0.09827218,93810.0,93797.0,3.8e-07]
[1767679964819,0.09827218,93810.0,93793.0,0.09146797]
[1767679964820,0.010662,93806.0,93793.0,0.09069094]
[1767679965033,0.10985501,93810.0,93793.0,0.09069094]
[1767679965034,0.010662,93809.0,93793.0,0.09069094]
[1767679965244,0.01158283,93810.0,93793.0,0.09069094]
[1767679965245,0.01158283,93810.0,93793.0,0.10135494]
[1767679965442,0.01158283,93810.0,93795.0,0.010664]
[1767679965641,0.010662,93812.0,93795.0,0.010664]
[1767679968244,0.09777937,93814.0,93797.0,0.010663]
[1767679968551,0.10844137,93814.0,93797.0,0.010663]
[1767679968941,0.1200242,93814.0,93797.0,0.010663]
[1767679969649,0.010662,93812.0,93797.0,0.010663]
[1767679969840,0.010662,93812.0,93794.0,0.09624552]
[1767679970046,0.09777937,93806.0,93793.0,0.09069094]
[1767679970241,0.09777937,93806.0,93793.0,0.01075494]
[1767679970444,0.1093622,93806.0,93793.0,9.094e-05]
[1767679971337,0.09777937,93810.0,93794.0,0.010664]
[1767679971550,0.1093622,93810.0,93794.0,0.010664]
[1767679971750,0.01158283,93814.0,93793.0,0.0119889]
[1767679971954,0.01158283,93814.0,93794.0,0.01189796]
[1767679972954,0.01158283,93813.0,93794.0,0.01189796]
[1767679973140,0.1093622,93813.0,93798.0,0.010663]
[1767679973344,0.0906,93820.0,93798.0,0.010663]
[1767679973345,0.1093622,93811.0,93798.0,0.010663]
[1767679973945,0.1093622,93811.0,93795.0,0.010664]
[1767679974451,0.1200242,93811.0,93795.0,0.010664]
[1767679974954,0.01158283,93809.0,93795.0,0.010664]
[1767679975150,0.01158283,93809.0,93793.0,9.094e-05]
[1767679975458,0.01692146,93796.0,93782.0,0.010665]
[1767679975753,0.0999317,93797.0,93784.0,0.010665]
[1767679976250,0.01692146,93799.0,93784.0,0.010665]
[1767679976455,9.094e-05,93798.0,93784.0,0.010665]
[1767679977147,0.01692146,93790.0,93779.0,0.00213268]
[1767679977453,0.11685316,93788.0,93772.0,0.09064]
[1767679977651,0.01692146,93785.0,93768.0,0.010667]
[1767679977948,0.01692146,93785.0,93771.0,0.010666]
[1767679978155,0.0999317,93786.0,93768.0,0.01602923]
[1767679978555,0.0999317,93786.0,93773.0,0.010666]
[1767679979257,0.0999317,93786.0,93769.0,0.010667]
[1767679979556,0.0999317,93786.0,93772.0,0.010666]
[1767679980454,0.0999317,93786.0,93774.0,0.010666]
[1767679982759,0.10954472,93784.0,93764.0,0.09064]
[1767679983059,0.10954472,93784.0,93767.0,0.15936081]
[1767679983452,0.10954472,93789.0,93774.0,0.010666]
[1767679983652,0.010664,93791.0,93779.0,0.010665]
[1767679983653,0.09064,93791.0,93779.0,0.010665]
[1767679984649,0.010664,93796.0,93773.0,0.01524632]
[1767679984850,0.10954472,93797.0,93781.0,0.010665]
[1767679985154,9.094e-05,93798.0,93775.0,0.010666]
[1767679985155,0.01669901,93787.0,93775.0,0.010666]
[1767679985558,0.09284571,93788.0,93775.0,0.010666]
[1767679987153,0.09284571,93788.0,93769.0,0.01549871]
[1767679988065,0.09284571,93788.0,93770.0,0.01543119]
[1767679989256,0.09284571,93788.0,93777.0,0.010666]
[1767679991460,9.094e-05,93798.0,93772.0,0.02548352]
[1767679991461,0.10954472,93794.0,93772.0,0.02548352]
[1767679991656,0.10954472,93794.0,93783.0,0.010665]
[1767679993160,0.09064,93793.0,93783.0,0.010665]
[1767679994164,0.10733901,93793.0,93773.0,0.01481752]
[1767679994556,0.10733901,93793.0,93782.0,0.010665]
[1767679996268,0.01669901,93792.0,93782.0,0.010665]
[1767679996569,0.01669901,93792.0,93773.0,0.01481752]
[1767679996570,0.01669901,93792.0,93779.0,0.010665]
[1767679996762,0.10954472,93792.0,93779.0,0.010665]
[1767679996962,0.01669901,93791.0,93779.0,0.010665]
[1767679998166,0.09284571,93792.0,93779.0,0.010665]
[1767679998356,0.10954472,93792.0,93779.0,0.010665]
[1767679999068,0.10954472,93792.0,93782.0,0.010665]
[1767680004270,0.10954472,93792.0,93779.0,0.010665]
[1767680004474,0.10954472,93790.0,93778.0,0.010666]
[1767680005474,0.10954472,93790.0,93780.0,0.010665]
[1767680006671,0.10954472,93789.0,93769.0,0.01331068]
[1767680007063,0.01669901,93782.0,93774.0,0.010666]
[1767680007472,0.09284571,93783.0,93774.0,0.010666]
[1767680007973,0.09284571,93783.0,93776.0,0.010666]
[1767680008173,0.09284571,93783.0,93766.0,0.01285701]
[1767680008473,0.09284571,93783.0,93766.0,0.17240568]
[1767680009173,0.01669901,93787.0,93766.0,0.26975258]
[1767680009376,0.01669901,93787.0,93778.0,0.010666]
[1767680017383,0.01669901,93787.0,93771.0,0.09064]
[1767680017573,0.01716944,93790.0,93780.0,0.010665]
[1767680018481,0.01716944,93790.0,93777.0,0.010666]
[1767680018681,0.01716944,93790.0,93779.0,0.010665]
[1767680019376,0.01716944,93790.0,93776.0,0.010666]
[1767680019581,0.01716944,93790.0,93778.0,0.010666]
[1767680022387,0.01716944,93790.0,93771.0,0.09064]
[1767680024187,0.01716944,93790.0,93778.0,0.010666]
[1767680029492,0.01716944,93790.0,93775.0,0.010666]
[1767680030386,0.11055015,93790.0,93775.0,0.010666]
[1767680030590,0.01716944,93788.0,93775.0,0.010666]
[1767680034288,0.01716944,93780.0,93771.0,0.09064]
[1767680034592,0.01716944,93783.0,93774.0,0.010666]
[1767680034993,0.09338071,93785.0,93774.0,0.010666]
[1767680035894,0.01491749,93787.0,93776.0,0.010666]
[1767680036202,0.01491749,93787.0,93771.0,0.09064]
[1767680036203,0.01491749,93787.0,93778.0,0.010666]
[1767680036397,0.09874439,93791.0,93778.0,0.010666]
[1767680036586,0.01491749,93790.0,93778.0,0.010666]
[1767680038797,0.01491749,93790.0,93771.0,0.09064]
[1767680038991,0.01491749,93790.0,93776.0,0.010666]
[1767680040793,0.01491749,93790.0,93778.0,0.010666]
[1767680041196,0.01491749,93790.0,93775.0,0.010666]
[1767680042193,0.0159543,93789.0,93774.0,0.010666]
[1767680042402,0.0159543,93784.0,93774.0,0.010666]
[1767680042698,0.0159543,93784.0,93771.0,0.101306]
[1767680042900,0.0159543,93784.0,93773.0,0.010666]
[1767680048108,0.0159543,93789.0,93771.0,0.09064]
[1767680048404,0.1065943,93794.0,93779.0,0.09831387]
[1767680049804,0.1065943,93794.0,93778.0,0.010666]
[1767680049995,0.0159543,93793.0,93778.0,0.010666]
[1767680053104,0.0159543,93793.0,93775.0,0.010666]
[1767680053606,0.0159543,93793.0,93777.0,0.010666]
[1767680053807,0.0159543,93793.0,93774.0,0.010666]
[1767680054106,0.0159543,93793.0,93776.0,0.010666]
[1767680054805,0.0159543,93793.0,93778.0,0.010666]
[1767680061105,0.0159543,93797.0,93776.0,0.00872355]
[1767680061307,0.09073094,93798.0,93780.0,0.2049102]
[1767680061501,0.09073094,93798.0,93786.0,0.010665]
[1767680062399,0.09073094,93798.0,93783.0,0.010665]
[1767680062596,0.10668524,93798.0,93783.0,0.010665]
[1767680064215,0.0159543,93797.0,93783.0,0.010665]
[1767680067014,0.09073094,93798.0,93783.0,0.010665]
[1767680067316,9.094e-05,93798.0,93785.0,0.010665]
[1767680067710,9.094e-05,93798.0,93788.0,0.09831387]
[1767680067914,9.094e-05,93798.0,93785.0,0.010665]
[1767680068117,9.094e-05,93798.0,93782.0,0.010665]
[1767680068704,0.01604524,93798.0,93782.0,0.010665]
[1767680069212,0.01604524,93798.0,93781.0,0.09787278]
[1767680069516,0.0159543,93796.0,93780.0,0.19961887]
[1767680070919,0.0159543,93796.0,93782.0,0.010665]
[1767680080038,0.0159543,93796.0,93784.0,0.010665]
[1767680080536,9.094e-05,93798.0,93784.0,0.010665]
[1767680081225,9.094e-05,93798.0,93781.0,0.010665]
[1767680081430,0.0136495,93798.0,93781.0,0.010665]
[1767680082138,0.0136495,93798.0,93780.0,0.18895387]
[1767680082330,0.0136495,93798.0,93783.0,0.010665]
[1767680082838,0.10405327,93798.0,93783.0,0.010665]
[1767680083039,0.01355856,93797.0,93783.0,0.010665]
[1767680083938,0.01355856,93797.0,93780.0,0.19961887]
[1767680084543,0.02422156,93797.0,93780.0,0.19961887]
[1767680084842,0.02422156,93797.0,93780.0,0.101305]
[1767680085144,0.01355856,93796.0,93780.0,0.19961887]
[1767680085441,0.01355856,93796.0,93782.0,0.010665]
[1767680089845,9.094e-05,93798.0,93786.0,0.010665]
[1767680090035,9.094e-05,93798.0,93783.0,0.010665]
[1767680090944,9.094e-05,93798.0,93781.0,0.09151903]
[1767680092146,9.094e-05,93798.0,93782.0,0.010665]
[1767680092443,9.094e-05,93798.0,93784.0,0.010665]
[1767680093636,0.0136495,93798.0,93784.0,0.010665]
[1767680094244,0.0136495,93798.0,93786.0,0.010665]
[1767680096150,0.0136495,93798.0,93783.0,0.010665]
[1767680097847,0.0136495,93798.0,93785.0,0.010665]
[1767680100247,9.094e-05,93798.0,93785.0,0.010665]
[1767680100551,9.094e-05,93798.0,93783.0,0.09461145]
[1767680100949,9.094e-05,93798.0,93784.0,0.00389904]
[1767680101147,9.094e-05,93798.0,93784.0,0.09441035]
[1767680101346,0.10841008,93810.0,93780.0,0.09064]
[1767680101347,0.0118959,93809.0,93793.0,0.010664]
[1767680101538,0.10277273,93808.0,93785.0,0.09432101]
[1767680101843,0.0118959,93806.0,93785.0,0.09432101]
[1767680102032,0.010663,93804.0,93785.0,0.09432101]
[1767680102239,0.0118959,93799.0,93781.0,0.010665]
[1767680102538,0.0118959,93797.0,93782.0,0.09064]
[1767680103432,0.0118959,93797.0,93775.0,0.00368836]
[1767680103638,0.0225599,93796.0,93777.0,0.010666]
[1767680104133,0.0118959,93796.0,93779.0,0.010665]
[1767680104948,0.0118959,93796.0,93780.0,0.09064]
[1767680105143,0.0118959,93796.0,93779.0,0.010665]
[1767680105144,0.0118959,93784.0,93769.0,0.09064]
[1767680105443,0.0118959,93784.0,93767.0,0.05788763]
[1767680105649,0.0118959,93784.0,93766.0,0.15914374]
[1767680105850,0.0118959,93784.0,93768.0,0.15914374]
[1767680106048,0.0118959,93784.0,93767.0,0.09064]
[1767680106433,0.0118959,93784.0,93768.0,0.16077659]
[1767680107547,0.0118959,93788.0,93769.0,0.11352368]
[1767680107751,0.0118959,93788.0,93770.0,0.01234537]
[1767680108450,0.0118959,93788.0,93769.0,0.10117831]
[1767680113145,0.0225609,93788.0,93769.0,0.10117831]
[1767680114454,0.0118959,93787.0,93769.0,0.10117831]
[1767680115148,0.0118959,93787.0,93771.0,0.010666]
[1767680115748,0.010665,93788.0,93771.0,0.010666]
[1767680118356,0.10277273,93790.0,93773.0,0.010666]
[1767680118563,0.010664,93791.0,93775.0,0.010666]
[1767680119644,0.0225599,93791.0,93775.0,0.010666]
[1767680120145,0.0118959,93788.0,93772.0,0.010666]
[1767680120857,0.010664,93789.0,93772.0,0.010666]